Workbook

Sheet Cover
A3: Navigator
C5: =Client_Name -> Go Skills Financial Modeling Training
C6: =Model_Name -> Go Skills Model 47 - Taxation End.xlsm
C14: Primary Developer: Liam Bastick
C16: General Cover Notes:
C17: Financial Model for Training Course.
C21: Any queries, please e-mail: | G21: Liam Bastick

Sheet Navigator
A1: Navigator
A2: =Model_Name -> Go Skills Model 47 - Taxation End.xlsm
A3: Navigator
E4: Error Checks: | G4: =Overall_Error_Check -> 0
B7: 1 | C7: Table of Contents
F9: Cover
F10: Style Guide
F11: Model Parameters
F12: Assumptions
F13: Calculations
F14: Opening Balance Sheet
F15: Income Statement
F16: Balance Sheet
F17: Cash Flow Statement
F18: Lookup
F19: Timing
F20: Error Checks
F21: Change Log

Sheet Style Guide
A1: =IF(ISERROR(RIGHT(CELL("filename",A1),LEN(CELL("filename",A1))-FIND("]",CELL("filename",A1)))), "", RIGHT(CELL("filename",A1),LEN(CELL("filename",A1))-FIND("]",CELL("filename",A1)))) -> Style Guide
A2: =Model_Name -> Go Skills Model 47 - Taxation End.xlsm
A3: Navigator
E4: Error Checks: | I4: =Overall_Error_Check -> 0
B6: =MAX($B$5:$B5)+1 -> 1 | C6: Formatting of Headers / Dividers
C8: Description | I8: Display | K8: Style Name
C10: Sheet Title | I10: =C10 -> Sheet Title | K10: Sheet Title
C11: Model Name | I11: =C11 -> Model Name | K11: Model Name
C13: Header 1 | I13: =C13 -> Header 1 | K13: Header 1
C14: Header 2 | I14: =C14 -> Header 2 | K14: Header 2
C15: Header 3 | I15: =C15 -> Header 3 | K15: Header 3
C16: Header 4 | I16: =C16 -> Header 4 | K16: Header 4
C18: Notes | I18: =C18 -> Notes | K18: Notes
C20: Table Heading | I20: =C20 -> Table Heading | K20: Table Heading
B23: =MAX($B$5:$B22)+1 -> 2 | C23: Individual Cell Styles
C25: Description | I25: Display | K25: Style Name
C27: Assumption | I27: Assumption | K27: =C27 -> Assumption
C29: Constraint | I29: =C29 -> Constraint | K29: =C29 -> Constraint
C31: Empty | K31: =C31 -> Empty
C33: Error Check | I33: 0 | K33: =C33 -> Error Check
C35: Hyperlink | I35: Hyperlink | K35: =C35 -> Hyperlink
C37: Internal Reference | I37: =Days_in_Year -> 365 | K37: =C37 -> Internal Reference
C39: Line Calculation | I39: 77 | K39: Line Calc
C41: Line Total | I41: =I39 -> 77 | K41: =C41 -> Line Total
C43: Parameter | I43: 365 | K43: =C43 -> Parameter
C45: Range Name Description | I45: Not_Named | K45: =C45 -> Range Name Description
C47: Row Reference | I47: =ROW(C47) -> 47 | K47: Row Ref
C49: Row Summary | I49: =I41 -> 77 | K49: =C49 -> Row Summary
C51: Units | I51: A$ | K51: =C51 -> Units
C53: WIP | K53: =C53 -> WIP
B56: =MAX($B$5:$B55)+1 -> 3 | C56: Numerical Styles
C58: Description | I58: Display | K58: Style Name
C60: Comma | I60: 123456.789 | K60: =C60 -> Comma
C62: Comma [0] | I62: -123456.789 | K62: Comma [0]
C64: Currency | I64: 123456.789 | K64: Currency
C66: Currency [0] | I66: 123456.789 | K66: Currency [0]
C68: Date | I68: =TODAY() -> 2017-04-13 | K68: =C68 -> Date
C70: Date Heading | I70: =TODAY() -> 2017-04-13 | K70: =C70 -> Date Heading
C72: Numbers 0 | I72: -123456.789 | K72: =C72 -> Numbers 0
C74: Percent | I74: 0.5 | K74: =C74 -> Percent

Sheet Model Parameters
A1: =IF(ISERROR(RIGHT(CELL("filename",A1),LEN(CELL("filename",A1))-FIND("]",CELL("filename",A1)))), "", RIGHT(CELL("filename",A1),LEN(CELL("filename",A1))-FIND("]",CELL("filename",A1)))) -> Model Parameters
A2: =Model_Name -> Go Skills Model 47 - Taxation End.xlsm
A3: Navigator
E4: Error Checks: | I4: =Overall_Error_Check -> 0
B6: =MAX($B$5:$B5)+1 -> 1 | C6: General
C8: Key Inputs
E10: General
E11: Model Name | G11: =IF(ISERROR(OR(FIND("[",CELL("filename",A1)),FIND("]",CELL("filename",A1)))),"",MID(CELL("filename",A1),FIND("[",CELL("filename",A1))+1,FIND("]",CELL("filename",A1))-FIND("[",CELL("filename",A1))-1)) -> Go Skills Model 47 - Taxation End.xlsm
E12: Client Name | G12: Go Skills Financial Modeling Training
B15: =MAX($B$5:$B14)+1 -> 2 | C15: General Range Names
C17: Technical Assumptions
E19: Days in Year | G19: 365 | I19: Days_in_Year
E20: Months in Month | G20: 1 | I20: Months_in_Month
E21: Months in Quarter | G21: 3 | I21: Months_in_Qtr
E22: Months in Half Yr | G22: 6 | I22: Months_in_Half_Yr
E23: Months in Year | G23: 12 | I23: Months_in_Year
E24: Quarters in Year | G24: 4 | I24: Quarters_in_Year
E26: Rounding Accuracy | G26: 5 | I26: Rounding_Accuracy
E28: Very Large Number | G28: 1e+99 | I28: Very_Large_Number
E29: Very Small Number | G29: 1e-08 | I29: Very_Small_Number
E31: Thousand | G31: 1000 | I31: Thousand
B35: =MAX($B$5:$B34)+1 -> 3 | C35: Technical assumptions
C37: Units
E39: Unit | G39: # | I39: Unit
E40: Currency | G40: US$'000 | I40: Currency
E41: Dollars | G41: $ | I41: Dollars
E42: Boolean | G42: [1,0] | I42: Boolean
E43: Percentage | G43: % | I43: Percentage
E44: No of Days | G44: # Days | I44: No_of_Days
E45: Year | G45: Year | I45: Year
E46: No of Years | G46: # Year(s) | I46: No_of_Years
E47: Multiplier | G47: x | I47: Multiplier
E48: Weight | G48: kg | I48: Weight
E49: Price / Weight | G49: $/kg | I49: Price_Weight
C52: Financial Statement Abbreviations
E54: Income Statement | G54: IS | I54: Income_Statement
E55: Balance Sheet | G55: BS | I55: Balance_Sheet
E56: Cash Flow Statement | G56: CFS | I56: Cash_Flow_Statement

Sheet Assumptions
A1: =IF(ISERROR(RIGHT(CELL("filename",A1),LEN(CELL("filename",A1))-FIND("]",CELL("filename",A1)))), "", RIGHT(CELL("filename",A1),LEN(CELL("filename",A1))-FIND("]",CELL("filename",A1)))) -> Assumptions
A2: =Model_Name -> Go Skills Model 47 - Taxation End.xlsm
A3: Navigator
B4: Error Checks: | F4: =Overall_Error_Check -> 0
J5: =Timing!J5 -> 2020-06-30 | K5: =Timing!K5 -> 2021-06-30 | L5: =Timing!L5 -> 2022-06-30 | M5: =Timing!M5 -> 2023-06-30 | N5: =Timing!N5 -> 2024-06-30
C6: Start Date | J6: =Timing!J6 -> 2019-07-01 | K6: =Timing!K6 -> 2020-07-01 | L6: =Timing!L6 -> 2021-07-01 | M6: =Timing!M6 -> 2022-07-01 | N6: =Timing!N6 -> 2023-07-01
C7: End Date | J7: =Timing!J7 -> 2020-06-30 | K7: =Timing!K7 -> 2021-06-30 | L7: =Timing!L7 -> 2022-06-30 | M7: =Timing!M7 -> 2023-06-30 | N7: =Timing!N7 -> 2024-06-30
C8: Number of Days | J8: =Timing!J8 -> 366 | K8: =Timing!K8 -> 365 | L8: =Timing!L8 -> 365 | M8: =Timing!M8 -> 365 | N8: =Timing!N8 -> 366
C9: Counter | J9: =Timing!J9 -> 1 | K9: =Timing!K9 -> 2 | L9: =Timing!L9 -> 3 | M9: =Timing!M9 -> 4 | N9: =Timing!N9 -> 5
B11: =MAX($B$10:$B10)+1 -> 1 | C11: =A1 -> Assumptions
C13: Revenue and related
D15: Sales
E17: Projected sales | G17: =Unit -> # | J17: 100 | K17: 200 | L17: 300 | M17: 400 | N17: 500
E18: Unit price | G18: =Currency -> US$'000 | J18: 15
E19: Inflation | G19: =Percentage -> % | K19: 0.03 | L19: 0.04 | M19: 0.05 | N19: 0.06
D21: Working capital
E23: Days receivable | G23: =No._of_days -> # Days | J23: 60 | K23: 60 | L23: 60 | M23: 60 | N23: 60
C26: COGS and related
D28: COGS
E30: Gross margin (non-inventory) | G30: =Percentage -> % | J30: 0.7 | K30: 0.7 | L30: 0.7 | M30: 0.7 | N30: 0.7
D32: Working capital
E34: Days payable | G34: =No._of_days -> # Days | J34: 90 | K34: 90 | L34: 90 | M34: 90 | N34: 90
C37: Purchases and related
D39: Purchases
E41: Purchases | G41: =Weight -> kg | J41: 400 | K41: 775 | L41: 325 | M41: 550 | N41: 1000
E42: Price | G42: =Price_Weight -> $/kg | J42: 3990 | K42: 4750 | L42: 2800 | M42: 4160 | N42: 5000
E43: Amount used per sale | G43: =Weight -> kg | J43: 2 | K43: 2 | L43: 2 | M43: 2 | N43: 2
E44: Wastage | G44: =Percentage -> % | J44: 0.03 | K44: 0.02 | L44: 0.02 | M44: 0.01 | N44: 0.01
D46: Working capital
E48: Days payable | G48: =No._of_days -> # Days | J48: 30 | K48: 30 | L48: 30 | M48: 30 | N48: 30
C51: Opex and cash payments
C52: All expenses are assumed to be paid as they are incurred
D54: Opex
E56: Growth rates used from | G56: =Year -> Year | I56: 2023-06-30
E57: Amounts | G57: =Currency -> US$'000 | J57: 60 | K57: 65 | L57: 70 | M57: 75 | N57: 80
E58: Growth rates | G58: =Percentage -> % | K58: 0.05 | L58: 0.04 | M58: 0.03 | N58: 0.02
C61: Capex and related
D63: Capital expenditure
E65: Capital expenditure | G65: =Currency -> US$'000 | J65: 150 | K65: 180 | L65: 120 | M65: 90 | N65: 100
D67: Accounting depreciation - straight line
E69: Remaining life of existing assets | G69: =No_of_Years -> # Year(s) | I69: 5
E70: Annual rate | G70: =Percentage -> % | I70: =IF(I69=0,,1/I69) -> 0.2
E72: Economic life of new capex | G72: =No_of_Years -> # Year(s) | I72: 4
E73: Annual rate | G73: =Percentage -> % | I73: =IF(I72=0,,1/I72) -> 0.25
C76: Debt and related
C77: Movements are assumed to occur at the end of each period
C78: Interest is assumed to be paid in the following period
D80: Debt
E82: Debt drawdowns | G82: =Currency -> US$'000 | J82: 20 | K82: 20 | L82: 0 | M82: 0 | N82: 0
E83: Debt repayments | G83: =Currency -> US$'000 | J83: 0 | K83: 0 | L83: 15 | M83: 25 | N83: 10
D85: Interest
E87: Interest rate | G87: =Percentage -> % | J87: 0.06 | K87: 0.07 | L87: 0.07 | M87: 0.08 | N87: 0.08
D89: Interest receivable
E91: Interest receivable rate | G91: =Percentage -> % | J91: 0.01 | K91: 0.01 | L91: 0.01 | M91: 0.01 | N91: 0.01
E93: Proportion into period of movement | G93: =Percentage -> % | I93: 0.5
C96: Taxation
D98: Tax rate
E100: Tax rate | G100: =Percentage -> % | I100: 0.3
D102: Permanent differences
E104: Non-assessable revenue | G104: =Currency -> US$'000 | J104: 25 | K104: 25 | L104: 25 | M104: 25 | N104: 25
E105: Disallowable expenses | G105: =Currency -> US$'000 | J105: 40 | K105: 16 | L105: 25 | M105: 30 | N105: 50
D107: Tax depreciation (declining balance)
E109: Declining balance multiplier | G109: =Multiplier -> x | I109: 2
E111: Remaining life of tax assets | G111: =No_of_Years -> # Year(s) | I111: 5
E112: Annual rate | G112: =Percentage -> % | I112: =IF(I111=0,,$I$109/I111) -> 0.4
E114: Tax asset life of new capex | G114: =No_of_Years -> # Year(s) | I114: 4
E115: Annual rate | G115: =Percentage -> % | I115: =IF(I114=0,,$I$109/I114) -> 0.5
D117: DTA
D118: DTAs are assumed to arise through losses carried forward
E120: DTA | G120: =Currency -> US$'000 | I120: ='Opening Balance Sheet'!$I$22 -> 0
D122: DTL
D123: DTLs are assumed to arise through depreciation timing differences
E125: DTL | G125: =Currency -> US$'000 | I125: ='Opening Balance Sheet'!$I$37 -> 0
D127: Tax payable and paid
E129: Payment delay | G129: =No_of_Years -> # Year(s) | I129: 1

Sheet Calculations
A1: =IF(ISERROR(RIGHT(CELL("filename",A1),LEN(CELL("filename",A1))-FIND("]",CELL("filename",A1)))), "", RIGHT(CELL("filename",A1),LEN(CELL("filename",A1))-FIND("]",CELL("filename",A1)))) -> Calculations
A2: =Model_Name -> Go Skills Model 47 - Taxation End.xlsm
A3: Navigator
B4: Error Checks: | F4: =Overall_Error_Check -> 0
J5: =Timing!J5 -> 2020-06-30 | K5: =Timing!K5 -> 2021-06-30 | L5: =Timing!L5 -> 2022-06-30 | M5: =Timing!M5 -> 2023-06-30 | N5: =Timing!N5 -> 2024-06-30
C6: Start Date | J6: =Timing!J6 -> 2019-07-01 | K6: =Timing!K6 -> 2020-07-01 | L6: =Timing!L6 -> 2021-07-01 | M6: =Timing!M6 -> 2022-07-01 | N6: =Timing!N6 -> 2023-07-01
C7: End Date | J7: =Timing!J7 -> 2020-06-30 | K7: =Timing!K7 -> 2021-06-30 | L7: =Timing!L7 -> 2022-06-30 | M7: =Timing!M7 -> 2023-06-30 | N7: =Timing!N7 -> 2024-06-30
C8: Number of Days | J8: =Timing!J8 -> 366 | K8: =Timing!K8 -> 365 | L8: =Timing!L8 -> 365 | M8: =Timing!M8 -> 365 | N8: =Timing!N8 -> 366
C9: Counter | J9: =Timing!J9 -> 1 | K9: =Timing!K9 -> 2 | L9: =Timing!L9 -> 3 | M9: =Timing!M9 -> 4 | N9: =Timing!N9 -> 5
B11: =MAX($B$10:$B10)+1 -> 1 | C11: =A1 -> Calculations
C13: =Assumptions!C13 -> Revenue and related
D15: =Assumptions!D15 -> Sales
E17: =Assumptions!E17 -> Projected sales | G17: =Unit -> # | J17: =Assumptions!J17 -> 100 | K17: =Assumptions!K17 -> 200 | L17: =Assumptions!L17 -> 300 | M17: =Assumptions!M17 -> 400 | N17: =Assumptions!N17 -> 500
E18: =Assumptions!E18 -> Unit price | G18: =Currency -> US$'000 | J18: =Assumptions!J18 -> 15
E19: =Assumptions!E19 -> Inflation | G19: =Percentage -> % | K19: =Assumptions!K19 -> 0.03 | L19: =Assumptions!L19 -> 0.04 | M19: =Assumptions!M19 -> 0.05 | N19: =Assumptions!N19 -> 0.06
E21: Price per unit | G21: =G18 -> US$'000 | J21: =IF(J$9=1,$J$18,I21*(1+J19)) -> 15 | K21: =IF(K$9=1,$J$18,J21*(1+K19)) -> 15.45 | L21: 16.068 | M21: 16.8714 | N21: 17.883684
E23: Revenue | G23: =Currency -> US$'000 | J23: =J17*J21 -> 1500 | K23: =K17*K21 -> 3090 | L23: 4820.4 | M23: 6748.56 | N23: 8941.842
D25: Working capital
E27: Days receivable | G27: =No._of_days -> # Days | J27: =Assumptions!J23 -> 60 | K27: =Assumptions!K23 -> 60 | L27: =Assumptions!L23 -> 60 | M27: =Assumptions!M23 -> 60 | N27: =Assumptions!N23 -> 60
E29: Days in period | G29: =No._of_days -> # Days | J29: =J$8 -> 366 | K29: =K$8 -> 365 | L29: 365 | M29: 365 | N29: 366
E31: Closing receivables | G31: =Currency -> US$'000 | J31: =J23*J27/J29 -> 245.9016393 | K31: =K23*K27/K29 -> 507.9452055 | L31: 792.3945205 | M31: 1109.352329 | N31: 1465.875738
D33: Control account
E35: Opening receivables | G35: =Currency -> US$'000 | J35: =I38 -> 0 | K35: =J38 -> 245.9016393 | L35: 507.9452055 | M35: 792.3945205 | N35: 1109.352329 | O35: BS
E36: Revenue | G36: =Currency -> US$'000 | J36: =J23 -> 1500 | K36: =K23 -> 3090 | L36: 4820.4 | M36: 6748.56 | N36: 8941.842 | O36: IS
E37: Cash receipts | G37: =Currency -> US$'000 | J37: =J38-SUM(J35:J36) -> -1254.098361 | K37: =K38-SUM(K35:K36) -> -2827.956434 | L37: -4535.950685 | M37: -6431.602192 | N37: -8585.318591 | O37: CFS
E38: Closing receivables | G38: =Currency -> US$'000 | I38: ='Opening Balance Sheet'!$I$15 -> 0 | J38: =J31 -> 245.9016393 | K38: =K31 -> 507.9452055 | L38: 792.3945205 | M38: 1109.352329 | N38: 1465.875738 | O38: BS
C41: COGS and related
D43: COGS
E45: Revenue | G45: =Currency -> US$'000 | H45: ="Row "&ROW(J23) -> Row 23 | J45: =J23 -> 1500 | K45: =K23 -> 3090 | L45: 4820.4 | M45: 6748.56 | N45: 8941.842
E46: Gross margin (non-inventory) | G46: =Percentage -> % | J46: =Assumptions!J30 -> 0.7 | K46: =Assumptions!K30 -> 0.7 | L46: =Assumptions!L30 -> 0.7 | M46: =Assumptions!M30 -> 0.7 | N46: =Assumptions!N30 -> 0.7
E47: Gross profit (non-inventory) | G47: =Currency -> US$'000 | J47: =J45*J46 -> 1050 | K47: =K45*K46 -> 2163 | L47: 3374.28 | M47: 4723.992 | N47: 6259.2894
E49: COGS | G49: =Currency -> US$'000 | J49: =J45-J47 -> 450 | K49: =K45-K47 -> 927 | L49: 1446.12 | M49: 2024.568 | N49: 2682.5526
D51: Working capital
E53: =Assumptions!E34 -> Days payable | G53: =No._of_days -> # Days | J53: =Assumptions!J34 -> 90 | K53: =Assumptions!K34 -> 90 | L53: =Assumptions!L34 -> 90 | M53: =Assumptions!M34 -> 90 | N53: =Assumptions!N34 -> 90
E55: Days in period | G55: =No._of_days -> # Days | J55: =J$8 -> 366 | K55: =K$8 -> 365 | L55: 365 | M55: 365 | N55: 366
E57: Closing payables | G57: =Currency -> US$'000 | J57: =J49*J53/J55 -> 110.6557377 | K57: =K49*K53/K55 -> 228.5753425 | L57: 356.5775342 | M57: 499.2085479 | N57: 659.644082
D59: Control account
E61: Opening payables | G61: =Currency -> US$'000 | J61: =I64 -> 0 | K61: =J64 -> 110.6557377 | L61: 228.5753425 | M61: 356.5775342 | N61: 499.2085479 | O61: BS
E62: COGS | G62: =Currency -> US$'000 | J62: =J49 -> 450 | K62: =K49 -> 927 | L62: 1446.12 | M62: 2024.568 | N62: 2682.5526 | O62: IS
E63: Cash payments | G63: =Currency -> US$'000 | J63: =J64-SUM(J61:J62) -> -339.3442623 | K63: =K64-SUM(K61:K62) -> -809.0803952 | L63: =L64-SUM(L61:L62) -> -1318.117808 | M63: =M64-SUM(M61:M62) -> -1881.936986 | N63: =N64-SUM(N61:N62) -> -2522.117066 | O63: CFS
E64: Closing payables | G64: =Currency -> US$'000 | I64: ='Opening Balance Sheet'!$I$28 -> 0 | J64: =J57 -> 110.6557377 | K64: =K57 -> 228.5753425 | L64: 356.5775342 | M64: 499.2085479 | N64: 659.644082 | O64: BS
C67: Purchases and related
D69: Purchases
E71: =Assumptions!E41 -> Purchases | G71: =Assumptions!G41 -> kg | J71: =Assumptions!J41 -> 400 | K71: =Assumptions!K41 -> 775 | L71: =Assumptions!L41 -> 325 | M71: =Assumptions!M41 -> 550 | N71: =Assumptions!N41 -> 1000
E72: =Assumptions!E42 -> Price | G72: =Assumptions!G42 -> $/kg | J72: =Assumptions!J42 -> 3990 | K72: =Assumptions!K42 -> 4750 | L72: =Assumptions!L42 -> 2800 | M72: =Assumptions!M42 -> 4160 | N72: =Assumptions!N42 -> 5000
D74: Calculations
E76: Purchases | G76: =Weight -> kg | J76: =J71 -> 400 | K76: =K71 -> 775 | L76: 325 | M76: 550 | N76: 1000
E77: Prices | G77: =Price_Weight -> $/kg | J77: =J72 -> 3990 | K77: =K72 -> 4750 | L77: 2800 | M77: 4160 | N77: 5000
E78: Purchases | G78: =Currency -> US$'000 | J78: =J76*J77/Thousand -> 1596 | K78: =K76*K77/Thousand -> 3681.25 | L78: =L76*L77/Thousand -> 910 | M78: =M76*M77/Thousand -> 2288 | N78: =N76*N77/Thousand -> 5000
E80: Days payable | G80: =No._of_days -> # Days | J80: =Assumptions!J48 -> 30 | K80: =Assumptions!K48 -> 30 | L80: =Assumptions!L48 -> 30 | M80: =Assumptions!M48 -> 30 | N80: =Assumptions!N48 -> 30
E82: Days in period | G82: =No._of_days -> # Days | J82: =J$8 -> 366 | K82: =K$8 -> 365 | L82: 365 | M82: 365 | N82: 366
E84: Closing payables | G84: =Currency -> US$'000 | J84: =J78*J80/J82 -> 130.8196721 | K84: =K78*K80/K82 -> 302.5684932 | L84: 74.79452055 | M84: 188.0547945 | N84: 409.8360656
D86: Control Account
E88: Opening payables | G88: =Currency -> US$'000 | J88: =I91 -> 0 | K88: =J91 -> 130.8196721 | L88: 302.5684932 | M88: 74.79452055 | N88: 188.0547945 | O88: =Balance_Sheet -> BS
E89: Purchases | G89: =Currency -> US$'000 | J89: =J78 -> 1596 | K89: =K78 -> 3681.25 | L89: 910 | M89: 2288 | N89: 5000
E90: Cash payments | G90: =Currency -> US$'000 | J90: =J91-SUM(J88:J89) -> -1465.180328 | K90: =K91-SUM(K88:K89) -> -3509.501179 | L90: -1137.773973 | M90: -2174.739726 | N90: -4778.218729 | O90: =Cash_Flow_Statement -> CFS
E91: Closing payables | G91: =Currency -> US$'000 | J91: =J84 -> 130.8196721 | K91: =K84 -> 302.5684932 | L91: =L84 -> 74.79452055 | M91: 188.0547945 | N91: 409.8360656 | O91: =Balance_Sheet -> BS
C94: Inventory and related
D96: Referred Values
E98: Purchases | G98: =Weight -> kg | H98: ="Row "&ROW(J71) -> Row 71 | J98: =J71 -> 400 | K98: =K71 -> 775 | L98: 325 | M98: 550 | N98: 1000
E99: Purchases | G99: =Currency -> US$'000 | H99: ="Row "&ROW(J78) -> Row 78 | J99: =J78 -> 1596 | K99: =K78 -> 3681.25 | L99: 910 | M99: 2288 | N99: 5000
E100: Amount used per sale | G100: =Weight -> kg | J100: =Assumptions!J43 -> 2 | K100: =Assumptions!K43 -> 2 | L100: =Assumptions!L43 -> 2 | M100: =Assumptions!M43 -> 2 | N100: =Assumptions!N43 -> 2
E101: Wastage | G101: =Percentage -> % | J101: =Assumptions!J44 -> 0.03 | K101: =Assumptions!K44 -> 0.02 | L101: =Assumptions!L44 -> 0.02 | M101: =Assumptions!M44 -> 0.01 | N101: =Assumptions!N44 -> 0.01
E103: Projected sales | G103: =Unit -> # | H103: ="Row "&ROW(J17) -> Row 17 | J103: =J17 -> 100 | K103: =K17 -> 200 | L103: 300 | M103: 400 | N103: 500
D105: Calculations
E107: Amount used per sale | G107: =Weight -> kg | H107: ="Row "&ROW(J100) -> Row 100 | J107: =J100 -> 2 | K107: =K100 -> 2 | L107: 2 | M107: 2 | N107: 2
E108: Projected sales | G108: =Unit -> # | H108: ="Row "&ROW(J103) -> Row 103 | J108: =J103 -> 100 | K108: =K103 -> 200 | L108: 300 | M108: 400 | N108: 500
E109: COGS | G109: =Weight -> kg | J109: =J107*J108 -> 200 | K109: =K107*K108 -> 400 | L109: 600 | M109: 800 | N109: 1000
E111: Inventory balance pre-wastage | G111: =Weight -> kg | J111: =SUM(J127:J129) -> 200 | K111: =SUM(K127:K129) -> 569 | L111: 282.62 | M111: 26.9676 | N111: 26.697924
E112: Wastage | G112: =Percentage -> % | H112: ="Row "&ROW(J101) -> Row 101 | J112: =J101 -> 0.03 | K112: =K101 -> 0.02 | L112: 0.02 | M112: 0.01 | N112: 0.01
E113: Wastage | G113: =Weight -> kg | J113: =J111*J112 -> 6 | K113: =K111*K112 -> 11.38 | L113: 5.6524 | M113: 0.269676 | N113: 0.26697924
E115: Inventory balance pre-COGS transfer | G115: =Weight -> kg | J115: =SUM(J127:J128) -> 400 | K115: =SUM(K127:K128) -> 969 | L115: 882.62 | M115: 826.9676 | N115: 1026.697924
E116: Inventory balance pre-COGS transfer | G116: =Currency -> US$'000 | J116: =SUM(J135:J136) -> 1596 | K116: =SUM(K135:K136) -> 4455.31 | L116: 3473.84929 | M116: 3378.099591 | N116: 5109.058984
E117: COGS | G117: =Weight -> kg | H117: ="Row "&ROW(J109) -> Row 109 | J117: =J109 -> 200 | K117: =K109 -> 400 | L117: 600 | M117: 800 | N117: 1000
E118: COGS | G118: =Currency -> US$'000 | J118: =J116*J117/J115 -> 798 | K118: =K116*K117/K115 -> 1839.137255 | L118: 2361.502769 | M118: 3267.939001 | N118: 4976.20465
E120: Inventory balance pre-wastage | G120: =Weight -> kg | J120: =J115-J117 -> 200 | K120: =K115-K117 -> 569 | L120: 282.62 | M120: 26.9676 | N120: 26.697924
E121: Inventory balance pre-COGS transfer | G121: =Currency -> US$'000 | J121: =J116-J118 -> 798 | K121: =K116-K118 -> 2616.172745 | L121: 1112.346521 | M121: 110.1605897 | N121: 132.8543336
E122: Wastage | G122: =Weight -> kg | H122: ="Row "&ROW(J113) -> Row 113 | J122: =J113 -> 6 | K122: =K113 -> 11.38 | L122: 5.6524 | M122: 0.269676 | N122: 0.26697924
E123: Wastage | G123: =Currency -> US$'000 | J123: =J121*J122/J120 -> 23.94 | K123: =K121*K122/K120 -> 52.3234549 | L123: 22.24693042 | M123: 1.101605897 | N123: 1.328543336
D125: Inventory at hand (kg)
E127: Opening inventory | G127: =Weight -> kg | J127: =I131 -> 0 | K127: =J131 -> 194 | L127: 557.62 | M127: 276.9676 | N127: 26.697924
E128: Purchases | G128: =Weight -> kg | J128: =J98 -> 400 | K128: =K98 -> 775 | L128: 325 | M128: 550 | N128: 1000
E129: COGS | G129: =Weight -> kg | J129: =-J109 -> -200 | K129: =-K109 -> -400 | L129: -600 | M129: -800 | N129: -1000
E130: Wastage | G130: =Weight -> kg | J130: =-J113 -> -6 | K130: =-K113 -> -11.38 | L130: -5.6524 | M130: -0.269676 | N130: -0.26697924
E131: Closing inventory | G131: =Weight -> kg | J131: =SUM(J127:J130) -> 194 | K131: =SUM(K127:K130) -> 557.62 | L131: =SUM(L127:L130) -> 276.9676 | M131: 26.697924 | N131: 26.43094476
D133: Inventory ($)
E135: Opening inventory | G135: =Currency -> US$'000 | J135: =I139 -> 0 | K135: =J139 -> 774.06 | L135: 2563.84929 | M135: 1090.099591 | N135: 109.0589839 | O135: =Balance_Sheet -> BS
E136: Purchases | G136: =Currency -> US$'000 | J136: =J99 -> 1596 | K136: =K99 -> 3681.25 | L136: 910 | M136: 2288 | N136: 5000
E137: COGS | G137: =Currency -> US$'000 | J137: =-J118 -> -798 | K137: =-K118 -> -1839.137255 | L137: -2361.502769 | M137: -3267.939001 | N137: -4976.20465 | O137: =Income_Statement -> IS
E138: Wastage | G138: =Currency -> US$'000 | J138: =-J123 -> -23.94 | K138: =-K123 -> -52.3234549 | L138: -22.24693042 | M138: -1.101605897 | N138: -1.328543336 | O138: =Income_Statement -> IS
E139: Closing inventory | G139: =Currency -> US$'000 | I139: ='Opening Balance Sheet'!$I$16 -> 0 | J139: =SUM(J135:J138) -> 774.06 | K139: =SUM(K135:K138) -> 2563.84929 | L139: =SUM(L135:L138) -> 1090.099591 | M139: =SUM(M135:M138) -> 109.0589839 | N139: =SUM(N135:N138) -> 131.5257902 | O139: =Balance_Sheet -> BS
C142: Opex and cash payments
C143: =Assumptions!C52 -> All expenses are assumed to be paid as they are incurred
D145: =Assumptions!D54 -> Opex
E147: =Assumptions!E56 -> Growth rates used from | G147: =Year -> Year | I147: =Assumptions!I56 -> 2023-06-30
E148: Growth rates flag | G148: =Boolean -> [1,0] | J148: =($I$147<=J$7)*1 -> 0 | K148: =($I$147<=K$7)*1 -> 0 | L148: 0 | M148: 1 | N148: 1
E150: =Assumptions!E57 -> Amounts | G150: =Currency -> US$'000 | J150: =Assumptions!J57 -> 60 | K150: =Assumptions!K57 -> 65 | L150: =Assumptions!L57 -> 70 | M150: =Assumptions!M57 -> 75 | N150: =Assumptions!N57 -> 80
E151: =Assumptions!E58 -> Growth rates | G151: =Percentage -> % | K151: =Assumptions!K58 -> 0.05 | L151: =Assumptions!L58 -> 0.04 | M151: =Assumptions!M58 -> 0.03 | N151: =Assumptions!N58 -> 0.02
E153: =D145 -> Opex | G153: =Currency -> US$'000 | J153: =(1-J148)*J150+(J148*I153*(1+J151)) -> 60 | K153: =(1-K148)*K150+(K148*J153*(1+K151)) -> 65 | L153: 70 | M153: 72.1 | N153: 73.542
D155: Working capital
E157: =E53 -> Days payable | G157: =No._of_days -> # Days
E159: Days in period | G159: =No._of_days -> # Days | J159: =J$8 -> 366 | K159: =K$8 -> 365 | L159: 365 | M159: 365 | N159: 366
E161: Closing payables | G161: =Currency -> US$'000 | J161: =J153*J157/J159 -> 0 | K161: =K153*K157/K159 -> 0 | L161: 0 | M161: 0 | N161: 0
D163: Control account
E165: Opening payables | G165: =Currency -> US$'000 | J165: =I168 -> 0 | K165: =J168 -> 0 | L165: =K168 -> 0 | M165: =L168 -> 0 | N165: =M168 -> 0 | O165: BS
E166: =D145 -> Opex | G166: =Currency -> US$'000 | J166: =J153 -> 60 | K166: =K153 -> 65 | L166: 70 | M166: 72.1 | N166: 73.542 | O166: IS
E167: Cash payments | G167: =Currency -> US$'000 | J167: =J168-SUM(J165:J166) -> -60 | K167: =K168-SUM(K165:K166) -> -65 | L167: -70 | M167: -72.1 | N167: -73.542 | O167: CFS
E168: Closing payables | G168: =Currency -> US$'000 | J168: =J161 -> 0 | K168: =K161 -> 0 | L168: 0 | M168: 0 | N168: 0 | O168: BS
C171: =Assumptions!C61 -> Capex and related
D173: =Assumptions!D63 -> Capital expenditure
E175: Existing assets | G175: =Currency -> US$'000 | I175: ='Opening Balance Sheet'!$I$21 -> 0
E176: =Assumptions!E65 -> Capital expenditure | G176: =Currency -> US$'000 | J176: =Assumptions!J65 -> 150 | K176: =Assumptions!K65 -> 180 | L176: =Assumptions!L65 -> 120 | M176: =Assumptions!M65 -> 90 | N176: =Assumptions!N65 -> 100
D178: =Assumptions!D67 -> Accounting depreciation - straight line
E180: =Assumptions!E69 -> Remaining life of existing assets | G180: =No_of_Years -> # Year(s) | I180: =Assumptions!I69 -> 5
E181: =Assumptions!E70 -> Annual rate | G181: =Percentage -> % | I181: =Assumptions!I70 -> 0.2
E183: =Assumptions!E72 -> Economic life of new capex | G183: =No_of_Years -> # Year(s) | I183: =Assumptions!I72 -> 4
E184: =Assumptions!E73 -> Annual rate | G184: =Percentage -> % | I184: =Assumptions!I73 -> 0.25
E186: Depreciation - existing assets | G186: =Currency -> US$'000 | I186: =I175*I181 -> 0
E187: Depreciation - new assets | G187: =Currency -> US$'000 | J187: =J176*$I$184 -> 37.5 | K187: =K176*$I$184 -> 45 | L187: 30 | M187: 22.5 | N187: 25
E189: New assets - depreciation counter | G189: unit | J189: =MIN(J$9,$I$183) -> 1 | K189: =MIN(K$9,$I$183) -> 2 | L189: 3 | M189: 4 | N189: 4
E191: Aggregate depreciation - existing assets | G191: =Currency -> US$'000 | J191: =IF(J$9>$I$180,,$I$186) -> 0 | K191: =IF(K$9>$I$180,,$I$186) -> 0 | L191: 0 | M191: 0 | N191: 0
E192: Aggregate depreciation - new assets | G192: =Currency -> US$'000 | J192: =SUM(OFFSET(J187,,,,-J189)) -> 37.5 | K192: =SUM(OFFSET(K187,,,,-K189)) -> 82.5 | L192: 112.5 | M192: 135 | N192: 122.5
E193: Total depreciation | G193: =Currency -> US$'000 | J193: =SUM(J191:J192) -> 37.5 | K193: =SUM(K191:K192) -> 82.5 | L193: 112.5 | M193: 135 | N193: 122.5
D195: Control account
E197: Opening net book value | G197: =Currency -> US$'000 | J197: =I200 -> 0 | K197: =J200 -> 112.5 | L197: =K200 -> 210 | M197: =L200 -> 217.5 | N197: =M200 -> 172.5 | O197: BS
E198: Capital expenditure | G198: =Currency -> US$'000 | J198: =J176 -> 150 | K198: =K176 -> 180 | L198: 120 | M198: 90 | N198: 100 | O198: =Cash_Flow_Statement -> CFS
E199: Depreciation | G199: =Currency -> US$'000 | J199: =-J193 -> -37.5 | K199: =-K193 -> -82.5 | L199: -112.5 | M199: -135 | N199: -122.5 | O199: =Income_Statement -> IS
E200: Closing net book value | G200: =Currency -> US$'000 | I200: ='Opening Balance Sheet'!$I$21 -> 0 | J200: =SUM(J197:J199) -> 112.5 | K200: =SUM(K197:K199) -> 210 | L200: =SUM(L197:L199) -> 217.5 | M200: 172.5 | N200: 150 | O200: BS
C203: =Assumptions!C76 -> Debt and related
C204: =Assumptions!C77 -> Movements are assumed to occur at the end of each period
C205: =Assumptions!C78 -> Interest is assumed to be paid in the following period
D207: =Assumptions!D80 -> Debt
E209: =Assumptions!E82 -> Debt drawdowns | G209: =Currency -> US$'000 | J209: =Assumptions!J82 -> 20 | K209: =Assumptions!K82 -> 20 | L209: =Assumptions!L82 -> 0 | M209: =Assumptions!M82 -> 0 | N209: =Assumptions!N82 -> 0
E210: =Assumptions!E83 -> Debt repayments | G210: =Currency -> US$'000 | J210: =Assumptions!J83 -> 0 | K210: =Assumptions!K83 -> 0 | L210: =Assumptions!L83 -> 15 | M210: =Assumptions!M83 -> 25 | N210: =Assumptions!N83 -> 10
D212: Control account
E214: Opening debt | G214: =Currency -> US$'000 | J214: =I217 -> 0 | K214: =J217 -> 20 | L214: 40 | M214: 25 | N214: 0 | O214: BS
E215: Debt drawdowns | G215: =Currency -> US$'000 | J215: =J209 -> 20 | K215: =K209 -> 20 | L215: 0 | M215: 0 | N215: 0 | O215: CFS
E216: Debt repayments | G216: =Currency -> US$'000 | J216: =-J210 -> 0 | K216: =-K210 -> 0 | L216: -15 | M216: -25 | N216: -10 | O216: CFS
E217: Closing debt | G217: =Currency -> US$'000 | I217: ='Opening Balance Sheet'!$I$36 -> 0 | J217: =SUM(J214:J216) -> 20 | K217: =SUM(K214:K216) -> 40 | L217: =SUM(L214:L216) -> 25 | M217: 0 | N217: -10 | O217: BS
D219: =Assumptions!D85 -> Interest
E221: =Assumptions!E87 -> Interest rate | G221: =Percentage -> % | J221: =Assumptions!J87 -> 0.06 | K221: =Assumptions!K87 -> 0.07 | L221: =Assumptions!L87 -> 0.07 | M221: =Assumptions!M87 -> 0.08 | N221: =Assumptions!N87 -> 0.08
E223: Opening debt | G223: =Currency -> US$'000 | H223: ="Row "&ROW(J214) -> Row 214 | J223: =J214 -> 0 | K223: =K214 -> 20 | L223: 40 | M223: 25 | N223: 0
E225: Days in Period | G225: =Unit -> # | J225: =J$8 -> 366 | K225: =K$8 -> 365 | L225: 365 | M225: 365 | N225: 366
E226: Days in Standard Year | G226: =Unit -> # | J226: =Days_in_Year -> 365 | K226: =Days_in_Year -> 365 | L226: =Days_in_Year -> 365 | M226: =Days_in_Year -> 365 | N226: =Days_in_Year -> 365
E227: Proportion of Year | G227: =Percentage -> % | J227: =MIN(J225/J226,1) -> 1 | K227: =MIN(K225/K226,1) -> 1 | L227: 1 | M227: 1 | N227: 1
E229: Interest | G229: =Currency -> US$'000 | J229: =J223*J221*J227 -> 0 | K229: =K223*K221*K227 -> 1.4 | L229: 2.8 | M229: 2 | N229: 0
D231: Control account
E233: Opening interest payable | G233: =Currency -> US$'000 | J233: =I236 -> 0 | K233: =J236 -> 0 | L233: 1.4 | M233: 2.8 | N233: 2 | O233: BS
E234: Interest expense | G234: =Currency -> US$'000 | J234: =J229 -> 0 | K234: =K229 -> 1.4 | L234: 2.8 | M234: 2 | N234: 0 | O234: IS
E235: Interest paid | G235: =Currency -> US$'000 | J235: =-J233 -> 0 | K235: =-K233 -> 0 | L235: -1.4 | M235: -2.8 | N235: -2 | O235: CFS
E236: Closing interest payable | G236: =Currency -> US$'000 | I236: ='Opening Balance Sheet'!$I$29 -> 0 | J236: =SUM(J233:J235) -> 0 | K236: =SUM(K233:K235) -> 1.4 | L236: =SUM(L233:L235) -> 2.8 | M236: 2 | N236: 0 | O236: BS
C239: Interest receivable
E241: Interest receivable rate | G241: =Percentage -> % | J241: =Assumptions!J91 -> 0.01 | K241: =Assumptions!K91 -> 0.01 | L241: =Assumptions!L91 -> 0.01 | M241: =Assumptions!M91 -> 0.01 | N241: =Assumptions!N91 -> 0.01
E243: Proportion into period of movement | G243: =Percentage -> % | I243: =Assumptions!I93 -> 0.5
E245: Opening cash balance | G245: =Currency -> US$'000 | J245: =IF(J$9=1,'Opening Balance Sheet'!$I$14,'Balance Sheet'!I$14) -> 0 | K245: =IF(K$9=1,'Opening Balance Sheet'!$I$14,'Balance Sheet'!J$14) -> -740.4262295 | L245: =IF(L$9=1,'Opening Balance Sheet'!$I$14,'Balance Sheet'!K$14) -> -2458.651964 | M245: =IF(M$9=1,'Opening Balance Sheet'!$I$14,'Balance Sheet'!L$14) -> -598.4491061 | N245: =IF(N$9=1,'Opening Balance Sheet'!$I$14,'Balance Sheet'!M$14) -> 1568.484338
E246: Non-interest cash movement | G246: =Currency -> US$'000 | J246: ='Cash Flow Statement'!J22+'Cash Flow Statement'!J26+'Cash Flow Statement'!J35 -> -740.4262295 | K246: ='Cash Flow Statement'!K22+'Cash Flow Statement'!K26+'Cash Flow Statement'!K35 -> -1715.62514 | L246: ='Cash Flow Statement'!L22+'Cash Flow Statement'!L26+'Cash Flow Statement'!L35 -> 1873.658904 | M246: ='Cash Flow Statement'!M22+'Cash Flow Statement'!M26+'Cash Flow Statement'!M35 -> 2185.025479 | N246: ='Cash Flow Statement'!N22+'Cash Flow Statement'!N26+'Cash Flow Statement'!N35 -> 1099.440796
E247: Tax rate | G247: =Percentage -> % | J247: =Assumptions!$I$100 -> 0.3 | K247: =Assumptions!$I$100 -> 0.3 | L247: =Assumptions!$I$100 -> 0.3 | M247: =Assumptions!$I$100 -> 0.3 | N247: =Assumptions!$I$100 -> 0.3
E249: Interest receivable | G249: =Currency -> US$'000 | J249: =(J245+(1-$I$243)*J246*(1-J247))*J241/(1-(1-$I$243)*(1-J$247)*J241) -> -2.600593882 | K249: =(K245+(1-$I$243)*K246*(1-K247))*K241/(1-(1-$I$243)*(1-K$247)*K241) -> -13.45604645 | L249: -18.0920356 | M249: 1.668939405 | N249: 19.60149138
D251: Control account
E253: Opening interest receivable | G253: =Currency -> US$'000 | J253: =I256 -> 0 | K253: =J256 -> -2.600593882 | L253: -13.45604645 | M253: -18.0920356 | N253: 1.668939405 | O253: BS
E254: Interest Income | G254: =Currency -> US$'000 | J254: =J249 -> -2.600593882 | K254: =K249 -> -13.45604645 | L254: -18.0920356 | M254: 1.668939405 | N254: 19.60149138 | O254: IS
E255: Interest Received | G255: =Currency -> US$'000 | J255: =-J253 -> 0 | K255: =-K253 -> 2.600593882 | L255: 13.45604645 | M255: 18.0920356 | N255: -1.668939405 | O255: CFS
E256: Closing interest receivable | G256: =Currency -> US$'000 | J256: =SUM(J253:J255) -> -2.600593882 | K256: =SUM(K253:K255) -> -13.45604645 | L256: =SUM(L253:L255) -> -18.0920356 | M256: 1.668939405 | N256: 19.60149138 | O256: BS
C259: Taxation
D261: Permanent differences
E263: Non-assessable revenue | G263: =Currency -> US$'000 | J263: =Assumptions!J104 -> 25 | K263: =Assumptions!K104 -> 25 | L263: =Assumptions!L104 -> 25 | M263: =Assumptions!M104 -> 25 | N263: =Assumptions!N104 -> 25
E264: Disallowable expenses | G264: =Currency -> US$'000 | J264: =Assumptions!J105 -> 40 | K264: =Assumptions!K105 -> 16 | L264: =Assumptions!L105 -> 25 | M264: =Assumptions!M105 -> 30 | N264: =Assumptions!N105 -> 50
D266: Accounting taxable profit
E268: NPBT | G268: =Currency -> US$'000 | J268: ='Income Statement'!J25 -> 127.9594061 | K268: ='Income Statement'!K25 -> 109.1832437 | L268: ='Income Statement'!L25 -> 787.1382648 | M268: ='Income Statement'!M25 -> 1247.520333 | N268: ='Income Statement'!N25 -> 1105.315698
E269: Deduct: Non-assessable revenue | G269: =Currency -> US$'000 | J269: =-J263 -> -25 | K269: =-K263 -> -25 | L269: -25 | M269: -25 | N269: -25
E270: Add: Disallowable expenses | G270: =Currency -> US$'000 | J270: =J264 -> 40 | K270: =K264 -> 16 | L270: 25 | M270: 30 | N270: 50
E271: Accounting taxable profit | G271: =Currency -> US$'000 | J271: =SUM(J268:J270) -> 142.9594061 | K271: =SUM(K268:K270) -> 100.1832437 | L271: 787.1382648 | M271: 1252.520333 | N271: 1130.315698
E273: Tax rate | G273: =Percentage -> % | J273: =Assumptions!$I$100 -> 0.3 | K273: =Assumptions!$I$100 -> 0.3 | L273: =Assumptions!$I$100 -> 0.3 | M273: =Assumptions!$I$100 -> 0.3 | N273: =Assumptions!$I$100 -> 0.3
E275: Tax expense / (credit) | G275: =Currency -> US$'000 | J275: =J271*J273 -> 42.88782184 | K275: =K271*K273 -> 30.05497312 | L275: 236.1414794 | M275: 375.7560998 | N275: 339.0947093
D277: Tax depreciation (declining balance)
E279: Capital expenditure
E280: Existing assets | G280: =Currency -> US$'000
E281: Capital expenditure | G281: =Currency -> US$'000
E283: Declining balance multiplier | G283: =Multiplier -> x | I283: =Assumptions!I109 -> 2
E285: Remaining life of tax assets | I285: =Assumptions!I111 -> 5
E286: Annual rate | G286: =Percentage -> % | I286: =Assumptions!I112 -> 0.4
O287: =IFERROR(_xlfn.FORMULATEXT(I287),"") -> 
E288: Tax asset life of new Capex | I288: =Assumptions!I114 -> 4
E289: Annual rate | G289: =Percentage -> % | I289: =Assumptions!I115 -> 0.5
E291: Depreciation - existing assets | G291: =Currency -> US$'000
E292: 1 | G292: US$'000
E293: 2 | G293: US$'000
E294: 3 | G294: US$'000
E295: 4 | G295: US$'000
E296: 5 | G296: US$'000
E297: Tax depreciation | G297: US$'000
D299: Accounting depreciation
E301: Accounting depreciation | G301: =Currency -> US$'000
D303: Depreciation timing difference
E305: Accounting depreciation | G305: =Currency -> US$'000
E306: Tax depreciation | G306: =Currency -> US$'000
E307: Depreciation timing difference | G307: =Currency -> US$'000
E309: Tax rate | G309: =Percentage -> %
E311: Movement in DTLs | G311: =Currency -> US$'000
E313: Opening DTLs | G313: =Currency -> US$'000
... 36 more rows

Sheet Opening Balance Sheet
A1: =IF(ISERROR(RIGHT(CELL("filename",A1),LEN(CELL("filename",A1))-FIND("]",CELL("filename",A1)))), "", RIGHT(CELL("filename",A1),LEN(CELL("filename",A1))-FIND("]",CELL("filename",A1)))) -> Opening Balance Sheet
A2: =Model_Name -> Go Skills Model 47 - Taxation End.xlsm
A3: Navigator
B4: Error Checks: | F4: =Overall_Error_Check -> 0
K5: =Model_Start_Date-1 -> 2019-06-30
C6: Start Date
C7: End Date
C8: Number of Days
C9: Counter
B11: =MAX($B$10:$B10)+1 -> 1 | C11: =A1 -> Opening Balance Sheet
C13: Current assets
D14: Cash | G14: =Currency -> US$'000 | K14: 250
D15: Accounts receivable | G15: =Currency -> US$'000 | K15: 50
D16: Inventory | G16: =Currency -> US$'000 | K16: 0
D17: Other current assets | G17: =Currency -> US$'000 | K17: 10
D18: Total current assets | G18: =Currency -> US$'000 | K18: =SUM(K14:K17) -> 310
C20: Non-current assets
D21: PP&E | G21: =Currency -> US$'000 | K21: 450
D22: Deferred tax assets | G22: =Currency -> US$'000 | K22: 75
D23: Total non-current assets | G23: =Currency -> US$'000 | K23: =SUM(K21:K22) -> 525
C25: Total assets | G25: =Currency -> US$'000 | K25: =K18+K23 -> 835
C27: Current liabilities
D28: Accounts payable | G28: =Currency -> US$'000 | K28: 30
D29: Interest payable | G29: US$'000 | K29: 20
D30: Dividends payable | G30: US$'000 | K30: 15
D31: Tax payable | G31: US$'000 | K31: 40
D32: Other current liabilities | G32: US$'000 | K32: 10
D33: Total current liabilities | G33: US$'000 | K33: =SUM(K28:K32) -> 115
C35: Non-current liabilities
D36: Debt | G36: =Currency -> US$'000 | K36: 150
D37: Deferred tax liabilities | G37: =Currency -> US$'000 | K37: 25
D38: Total non-current liabilities | G38: =Currency -> US$'000 | K38: =SUM(K36:K37) -> 175
C40: Total liabilities | G40: =Currency -> US$'000 | K40: =K33+K38 -> 290
C42: Net assets | G42: =Currency -> US$'000 | K42: =K25-K40 -> 545
C45: Equity
D46: Ordinary equity | G46: =Currency -> US$'000 | K46: 300
E47: Opening retained profits | G47: US$'000 | K47: =K42-SUM(K46,K48,K49) -> 220
E48: NPAT | G48: US$'000 | K48: 25
E49: Dividends declared | G49: US$'000 | K49: 0
D50: Retained profits | G50: US$'000 | K50: =SUM(K47:K49) -> 245
D51: Total equity | G51: US$'000 | K51: =K46+K50 -> 545
C54: ='Balance Sheet'!C54 -> Checks
D56: ='Balance Sheet'!D56 -> PF error check | G56: [1,0] | I56: =IF(ISERROR(I42-I51),1,0) -> 0
D57: ='Balance Sheet'!D57 -> Balance check | G57: [1,0] | I57: =IF(I56<>0,0,(ROUND(I42-I51,Rounding_Accuracy)<>0)*1) -> 0
D58: ='Balance Sheet'!D58 -> Insolvency check | G58: [1,0] | I58: =IF(SUM(I56:I57)<>0,0,(I42<0)*1) -> 0

Sheet Income Statement
A1: =IF(ISERROR(RIGHT(CELL("filename",A1),LEN(CELL("filename",A1))-FIND("]",CELL("filename",A1)))), "", RIGHT(CELL("filename",A1),LEN(CELL("filename",A1))-FIND("]",CELL("filename",A1)))) -> Income Statement
A2: =Model_Name -> Go Skills Model 47 - Taxation End.xlsm
A3: Navigator
B4: Error Checks: | F4: =Overall_Error_Check -> 0
J5: =Timing!J5 -> 2020-06-30 | K5: =Timing!K5 -> 2021-06-30 | L5: =Timing!L5 -> 2022-06-30 | M5: =Timing!M5 -> 2023-06-30 | N5: =Timing!N5 -> 2024-06-30
C6: Start Date | J6: =Timing!J6 -> 2019-07-01 | K6: =Timing!K6 -> 2020-07-01 | L6: =Timing!L6 -> 2021-07-01 | M6: =Timing!M6 -> 2022-07-01 | N6: =Timing!N6 -> 2023-07-01
C7: End Date | J7: =Timing!J7 -> 2020-06-30 | K7: =Timing!K7 -> 2021-06-30 | L7: =Timing!L7 -> 2022-06-30 | M7: =Timing!M7 -> 2023-06-30 | N7: =Timing!N7 -> 2024-06-30
C8: Number of Days | J8: =Timing!J8 -> 366 | K8: =Timing!K8 -> 365 | L8: =Timing!L8 -> 365 | M8: =Timing!M8 -> 365 | N8: =Timing!N8 -> 366
C9: Counter | J9: =Timing!J9 -> 1 | K9: =Timing!K9 -> 2 | L9: =Timing!L9 -> 3 | M9: =Timing!M9 -> 4 | N9: =Timing!N9 -> 5
B11: =MAX($B$10:$B10)+1 -> 1 | C11: =A1 -> Income Statement
D13: Revenue | G13: =Currency -> US$'000 | J13: =Calculations!J36 -> 1500 | K13: =Calculations!K36 -> 3090 | L13: =Calculations!L36 -> 4820.4 | M13: =Calculations!M36 -> 6748.56 | N13: =Calculations!N36 -> 8941.842
D14: COGS | G14: =Currency -> US$'000 | J14: =-Calculations!J62+Calculations!J137 -> -1248 | K14: =-Calculations!K62+Calculations!K137 -> -2766.137255 | L14: =-Calculations!L62+Calculations!L137 -> -3807.622769 | M14: =-Calculations!M62+Calculations!M137 -> -5292.507001 | N14: =-Calculations!N62+Calculations!N137 -> -7658.75725
D15: Gross Profit | G15: =Currency -> US$'000 | J15: =SUM(J13:J14) -> 252 | K15: =SUM(K13:K14) -> 323.8627451 | L15: 1012.777231 | M15: 1456.052999 | N15: 1283.08475
D17: Wastage | G17: =Currency -> US$'000 | J17: =Calculations!J138 -> -23.94 | K17: =Calculations!K138 -> -52.3234549 | L17: =Calculations!L138 -> -22.24693042 | M17: =Calculations!M138 -> -1.101605897 | N17: =Calculations!N138 -> -1.328543336
D18: Operating expenditure | G18: =Currency -> US$'000 | J18: =-Calculations!J166 -> -60 | K18: =-Calculations!K166 -> -65 | L18: =-Calculations!L166 -> -70 | M18: =-Calculations!M166 -> -72.1 | N18: =-Calculations!N166 -> -73.542
D19: EBITDA | G19: =Currency -> US$'000 | J19: =SUM(J15,J17:J18) -> 168.06 | K19: =SUM(K15,K17:K18) -> 206.5392902 | L19: 920.5303004 | M19: 1382.851393 | N19: 1208.214206
D21: Depreciation | G21: =Currency -> US$'000 | J21: =Calculations!J199 -> -37.5 | K21: =Calculations!K199 -> -82.5 | L21: =Calculations!L199 -> -112.5 | M21: =Calculations!M199 -> -135 | N21: =Calculations!N199 -> -122.5
D22: EBIT | G22: =Currency -> US$'000 | J22: =J19+J21 -> 130.56 | K22: =K19+K21 -> 124.0392902 | L22: 808.0303004 | M22: 1247.851393 | N22: 1085.714206
D24: Interest Expense | G24: =Currency -> US$'000 | J24: =-Calculations!J234+Calculations!J254 -> -2.600593882 | K24: =-Calculations!K234+Calculations!K254 -> -14.85604645 | L24: =-Calculations!L234+Calculations!L254 -> -20.8920356 | M24: =-Calculations!M234+Calculations!M254 -> -0.3310605948 | N24: =-Calculations!N234+Calculations!N254 -> 19.60149138
D25: NPBT | G25: =Currency -> US$'000 | J25: =J22+J24 -> 127.9594061 | K25: =K22+K24 -> 109.1832437 | L25: =L22+L24 -> 787.1382648 | M25: =M22+M24 -> 1247.520333 | N25: =N22+N24 -> 1105.315698
D27: Tax Expense | G27: =Currency -> US$'000
D28: NPAT | G28: =Currency -> US$'000 | J28: =J25+J27 -> 127.9594061 | K28: =K25+K27 -> 109.1832437 | L28: =L25+L27 -> 787.1382648 | M28: =M25+M27 -> 1247.520333 | N28: =N25+N27 -> 1105.315698

Sheet Balance Sheet
A1: =IF(ISERROR(RIGHT(CELL("filename",A1),LEN(CELL("filename",A1))-FIND("]",CELL("filename",A1)))), "", RIGHT(CELL("filename",A1),LEN(CELL("filename",A1))-FIND("]",CELL("filename",A1)))) -> Balance Sheet
A2: =Model_Name -> Go Skills Model 47 - Taxation End.xlsm
A3: Navigator
B4: Error Checks: | F4: =Overall_Error_Check -> 0
J5: =Timing!J5 -> 2020-06-30 | K5: =Timing!K5 -> 2021-06-30 | L5: =Timing!L5 -> 2022-06-30 | M5: =Timing!M5 -> 2023-06-30 | N5: =Timing!N5 -> 2024-06-30
C6: Start Date | J6: =Timing!J6 -> 2019-07-01 | K6: =Timing!K6 -> 2020-07-01 | L6: =Timing!L6 -> 2021-07-01 | M6: =Timing!M6 -> 2022-07-01 | N6: =Timing!N6 -> 2023-07-01
C7: End Date | J7: =Timing!J7 -> 2020-06-30 | K7: =Timing!K7 -> 2021-06-30 | L7: =Timing!L7 -> 2022-06-30 | M7: =Timing!M7 -> 2023-06-30 | N7: =Timing!N7 -> 2024-06-30
C8: Number of Days | J8: =Timing!J8 -> 366 | K8: =Timing!K8 -> 365 | L8: =Timing!L8 -> 365 | M8: =Timing!M8 -> 365 | N8: =Timing!N8 -> 366
C9: Counter | J9: =Timing!J9 -> 1 | K9: =Timing!K9 -> 2 | L9: =Timing!L9 -> 3 | M9: =Timing!M9 -> 4 | N9: =Timing!N9 -> 5
B11: =MAX($B$10:$B10)+1 -> 1 | C11: =A1 -> Balance Sheet
C13: ='Opening Balance Sheet'!C13 -> Current assets
D14: ='Opening Balance Sheet'!D14 -> Cash | G14: =Currency -> US$'000 | J14: =IF(J$9=1,'Opening Balance Sheet'!$I$14,I14)+'Cash Flow Statement'!J37 -> -740.4262295 | K14: =IF(K$9=1,'Opening Balance Sheet'!$I$14,J14)+'Cash Flow Statement'!K37 -> -2458.651964 | L14: =IF(L$9=1,'Opening Balance Sheet'!$I$14,K14)+'Cash Flow Statement'!L37 -> -598.4491061 | M14: =IF(M$9=1,'Opening Balance Sheet'!$I$14,L14)+'Cash Flow Statement'!M37 -> 1568.484338 | N14: =IF(N$9=1,'Opening Balance Sheet'!$I$14,M14)+'Cash Flow Statement'!N37 -> 2669.594073
D15: ='Opening Balance Sheet'!D15 -> Accounts receivable | G15: =Currency -> US$'000 | J15: =Calculations!J38 -> 245.9016393 | K15: =Calculations!K38 -> 507.9452055 | L15: =Calculations!L38 -> 792.3945205 | M15: =Calculations!M38 -> 1109.352329 | N15: =Calculations!N38 -> 1465.875738
D16: ='Opening Balance Sheet'!D16 -> Inventory | G16: =Currency -> US$'000 | J16: =Calculations!J139 -> 774.06 | K16: =Calculations!K139 -> 2563.84929 | L16: =Calculations!L139 -> 1090.099591 | M16: =Calculations!M139 -> 109.0589839 | N16: =Calculations!N139 -> 131.5257902
D17: ='Opening Balance Sheet'!D17 -> Other current assets | G17: =Currency -> US$'000
D18: ='Opening Balance Sheet'!D18 -> Total current assets | G18: =Currency -> US$'000 | J18: =SUM(J14:J17) -> 279.5354098 | K18: =SUM(K14:K17) -> 613.1425319 | L18: =SUM(L14:L17) -> 1284.045005 | M18: =SUM(M14:M17) -> 2786.89565 | N18: =SUM(N14:N17) -> 4266.995601
C20: ='Opening Balance Sheet'!C20 -> Non-current assets
D21: ='Opening Balance Sheet'!D21 -> PP&E | G21: =Currency -> US$'000 | J21: =Calculations!J200 -> 112.5 | K21: =Calculations!K200 -> 210 | L21: =Calculations!L200 -> 217.5 | M21: =Calculations!M200 -> 172.5 | N21: =Calculations!N200 -> 150
D22: ='Opening Balance Sheet'!D22 -> Deferred tax assets | G22: =Currency -> US$'000
D23: ='Opening Balance Sheet'!D23 -> Total non-current assets | G23: =Currency -> US$'000 | J23: =SUM(J21:J22) -> 112.5 | K23: =SUM(K21:K22) -> 210 | L23: 217.5 | M23: 172.5 | N23: 150
C25: ='Opening Balance Sheet'!C25 -> Total assets | G25: =Currency -> US$'000 | J25: =J18+J23 -> 392.0354098 | K25: =K18+K23 -> 823.1425319 | L25: 1501.545005 | M25: 2959.39565 | N25: 4416.995601
C27: ='Opening Balance Sheet'!C27 -> Current liabilities
D28: ='Opening Balance Sheet'!D28 -> Accounts payable | G28: =Currency -> US$'000 | J28: =Calculations!J64+Calculations!J91+Calculations!J168 -> 241.4754098 | K28: =Calculations!K64+Calculations!K91+Calculations!K168 -> 531.1438356 | L28: =Calculations!L64+Calculations!L91+Calculations!L168 -> 431.3720548 | M28: =Calculations!M64+Calculations!M91+Calculations!M168 -> 687.2633425 | N28: =Calculations!N64+Calculations!N91+Calculations!N168 -> 1069.480148
D29: ='Opening Balance Sheet'!D29 -> Interest payable | G29: US$'000 | J29: =Calculations!J236-Calculations!J256 -> 2.600593882 | K29: =Calculations!K236-Calculations!K256 -> 14.85604645 | L29: =Calculations!L236-Calculations!L256 -> 20.8920356 | M29: =Calculations!M236-Calculations!M256 -> 0.3310605948 | N29: =Calculations!N236-Calculations!N256 -> -19.60149138
D30: ='Opening Balance Sheet'!D30 -> Dividends payable | G30: US$'000
D31: ='Opening Balance Sheet'!D31 -> Tax payable | G31: US$'000
D32: ='Opening Balance Sheet'!D32 -> Other current liabilities | G32: US$'000
D33: ='Opening Balance Sheet'!D33 -> Total current liabilities | G33: US$'000 | J33: =SUM(J28:J32) -> 244.0760037 | K33: =SUM(K28:K32) -> 545.9998821 | L33: =SUM(L28:L32) -> 452.2640904 | M33: =SUM(M28:M32) -> 687.5944031 | N33: =SUM(N28:N32) -> 1049.878656
C35: ='Opening Balance Sheet'!C35 -> Non-current liabilities
D36: ='Opening Balance Sheet'!D36 -> Debt | G36: =Currency -> US$'000 | J36: =Calculations!J217 -> 20 | K36: =Calculations!K217 -> 40 | L36: =Calculations!L217 -> 25 | M36: =Calculations!M217 -> 0 | N36: =Calculations!N217 -> -10
D37: ='Opening Balance Sheet'!D37 -> Deferred tax liabilities | G37: =Currency -> US$'000
D38: ='Opening Balance Sheet'!D38 -> Total non-current liabilities | G38: =Currency -> US$'000 | J38: =SUM(J36:J37) -> 20 | K38: =SUM(K36:K37) -> 40 | L38: 25 | M38: 0 | N38: -10
C40: ='Opening Balance Sheet'!C40 -> Total liabilities | G40: =Currency -> US$'000 | J40: =J38+J33 -> 264.0760037 | K40: =K38+K33 -> 585.9998821 | L40: 477.2640904 | M40: 687.5944031 | N40: 1039.878656
C42: ='Opening Balance Sheet'!C42 -> Net assets | G42: =Currency -> US$'000 | J42: =J25-J40 -> 127.9594061 | K42: =K25-K40 -> 237.1426499 | L42: =L25-L40 -> 1024.280915 | M42: =M25-M40 -> 2271.801247 | N42: =N25-N40 -> 3377.116945
C45: ='Opening Balance Sheet'!C45 -> Equity
D46: ='Opening Balance Sheet'!D46 -> Ordinary equity | G46: =Currency -> US$'000
E47: ='Opening Balance Sheet'!E47 -> Opening retained profits | G47: US$'000 | J47: =IF(J$9=1,'Opening Balance Sheet'!$I$50,I50) -> 0 | K47: =IF(K$9=1,'Opening Balance Sheet'!$I$50,J50) -> 127.9594061 | L47: =IF(L$9=1,'Opening Balance Sheet'!$I$50,K50) -> 237.1426499 | M47: =IF(M$9=1,'Opening Balance Sheet'!$I$50,L50) -> 1024.280915 | N47: =IF(N$9=1,'Opening Balance Sheet'!$I$50,M50) -> 2271.801247
E48: ='Opening Balance Sheet'!E48 -> NPAT | G48: US$'000 | J48: ='Income Statement'!J28 -> 127.9594061 | K48: ='Income Statement'!K28 -> 109.1832437 | L48: ='Income Statement'!L28 -> 787.1382648 | M48: ='Income Statement'!M28 -> 1247.520333 | N48: ='Income Statement'!N28 -> 1105.315698
A49: w | E49: ='Opening Balance Sheet'!E49 -> Dividends declared | G49: US$'000
D50: ='Opening Balance Sheet'!D50 -> Retained profits | G50: US$'000 | J50: =SUM(J47:J49) -> 127.9594061 | K50: =SUM(K47:K49) -> 237.1426499 | L50: 1024.280915 | M50: 2271.801247 | N50: 3377.116945
D51: ='Opening Balance Sheet'!D51 -> Total equity | G51: US$'000 | J51: =J46+J50 -> 127.9594061 | K51: =K46+K50 -> 237.1426499 | L51: 1024.280915 | M51: 2271.801247 | N51: 3377.116945
C54: Checks
D56: PF error check | G56: =Boolean -> [1,0] | I56: =MIN(SUM(J56:N56),1) -> 0 | J56: =IF(ISERROR(J42-J51),1,0) -> 0 | K56: =IF(ISERROR(K42-K51),1,0) -> 0 | L56: 0 | M56: 0 | N56: 0
D57: Balance check | G57: =Boolean -> [1,0] | I57: =MIN(SUM(J57:N57),1) -> 0 | J57: =IF(J56<>0,0,(ROUND(J42-J51,Rounding_Accuracy)<>0)*1) -> 0 | K57: =IF(K56<>0,0,(ROUND(K42-K51,Rounding_Accuracy)<>0)*1) -> 0 | L57: =IF(L56<>0,0,(ROUND(L42-L51,Rounding_Accuracy)<>0)*1) -> 0 | M57: =IF(M56<>0,0,(ROUND(M42-M51,Rounding_Accuracy)<>0)*1) -> 0 | N57: =IF(N56<>0,0,(ROUND(N42-N51,Rounding_Accuracy)<>0)*1) -> 0
D58: Insolvency check | G58: =Boolean -> [1,0] | I58: =MIN(SUM(J58:N58),1) -> 0 | J58: =IF(SUM(J56:J57)<>0,0,(J42<0)*1) -> 0 | K58: =IF(SUM(K56:K57)<>0,0,(K42<0)*1) -> 0 | L58: 0 | M58: 0 | N58: 0

Sheet Cash Flow Statement
A1: =IF(ISERROR(RIGHT(CELL("filename",A1),LEN(CELL("filename",A1))-FIND("]",CELL("filename",A1)))), "", RIGHT(CELL("filename",A1),LEN(CELL("filename",A1))-FIND("]",CELL("filename",A1)))) -> Cash Flow Statement
A2: =Model_Name -> Go Skills Model 47 - Taxation End.xlsm
A3: Navigator
B4: Error Checks: | G4: =Overall_Error_Check -> 0
J5: =Timing!J5 -> 2020-06-30 | K5: =Timing!K5 -> 2021-06-30 | L5: =Timing!L5 -> 2022-06-30 | M5: =Timing!M5 -> 2023-06-30 | N5: =Timing!N5 -> 2024-06-30
C6: Start Date | J6: =Timing!J6 -> 2019-07-01 | K6: =Timing!K6 -> 2020-07-01 | L6: =Timing!L6 -> 2021-07-01 | M6: =Timing!M6 -> 2022-07-01 | N6: =Timing!N6 -> 2023-07-01
C7: End Date | J7: =Timing!J7 -> 2020-06-30 | K7: =Timing!K7 -> 2021-06-30 | L7: =Timing!L7 -> 2022-06-30 | M7: =Timing!M7 -> 2023-06-30 | N7: =Timing!N7 -> 2024-06-30
C8: Number of Days | J8: =Timing!J8 -> 366 | K8: =Timing!K8 -> 365 | L8: =Timing!L8 -> 365 | M8: =Timing!M8 -> 365 | N8: =Timing!N8 -> 366
C9: Counter | J9: =Timing!J9 -> 1 | K9: =Timing!K9 -> 2 | L9: =Timing!L9 -> 3 | M9: =Timing!M9 -> 4 | N9: =Timing!N9 -> 5
B11: =MAX($B$10:$B10)+1 -> 1 | C11: =A1 -> Cash Flow Statement
C13: Direct Cash Flow Statement
D15: Operating cash flow
E16: Cash receipts | G16: =Currency -> US$'000 | J16: =-Calculations!J37 -> 1254.098361 | K16: =-Calculations!K37 -> 2827.956434 | L16: =-Calculations!L37 -> 4535.950685 | M16: =-Calculations!M37 -> 6431.602192 | N16: =-Calculations!N37 -> 8585.318591
F17: Direct cash payments | G17: US$'000 | J17: =Calculations!J63+Calculations!J90 -> -1804.52459 | K17: =Calculations!K63+Calculations!K90 -> -4318.581574 | L17: =Calculations!L63+Calculations!L90 -> -2455.891781 | M17: =Calculations!M63+Calculations!M90 -> -4056.676712 | N17: =Calculations!N63+Calculations!N90 -> -7300.335795
F18: Indirect cash payments | G18: US$'000 | J18: =Calculations!J167 -> -60 | K18: =Calculations!K167 -> -65 | L18: =Calculations!L167 -> -70 | M18: =Calculations!M167 -> -72.1 | N18: =Calculations!N167 -> -73.542
E19: Cash payments | G19: US$'000 | J19: =SUM(J17:J18) -> -1864.52459 | K19: =SUM(K17:K18) -> -4383.581574 | L19: -2525.891781 | M19: -4128.776712 | N19: -7373.877795
E20: Interest paid | G20: US$'000 | J20: =Calculations!J235 -> 0 | K20: =Calculations!K235 -> 0 | L20: =Calculations!L235 -> -1.4 | M20: =Calculations!M235 -> -2.8 | N20: =Calculations!N235 -> -2
E21: Tax paid | G21: US$'000
E22: Net Operating cash flow | G22: US$'000 | J22: =SUM(J19:J21,J16) -> -610.4262295 | K22: =SUM(K19:K21,K16) -> -1555.62514 | L22: 2008.658904 | M22: 2300.025479 | N22: 1209.440796
D24: Investing cash flows
E25: Interest received | G25: =Currency -> US$'000 | J25: =-Calculations!J255 -> 0 | K25: =-Calculations!K255 -> -2.600593882 | L25: =-Calculations!L255 -> -13.45604645 | M25: =-Calculations!M255 -> -18.0920356 | N25: =-Calculations!N255 -> 1.668939405
E26: Purchases of Non-Current Assets | G26: =Currency -> US$'000 | J26: =-Calculations!J198 -> -150 | K26: =-Calculations!K198 -> -180 | L26: =-Calculations!L198 -> -120 | M26: =-Calculations!M198 -> -90 | N26: =-Calculations!N198 -> -100
E27: Net Investing cash flows | G27: =Currency -> US$'000 | J27: =SUM(J25:J26) -> -150 | K27: =SUM(K25:K26) -> -182.6005939 | L27: -133.4560464 | M27: -108.0920356 | N27: -98.33106059
D29: Financing cash flows
E30: Debt drawdowns | G30: =Currency -> US$'000 | J30: =Calculations!J215 -> 20 | K30: =Calculations!K215 -> 20 | L30: =Calculations!L215 -> 0 | M30: =Calculations!M215 -> 0 | N30: =Calculations!N215 -> 0
E31: Debt repayments | G31: US$'000 | J31: =Calculations!J216 -> 0 | K31: =Calculations!K216 -> 0 | L31: =Calculations!L216 -> -15 | M31: =Calculations!M216 -> -25 | N31: =Calculations!N216 -> -10
E32: Ordinary equity issuances | G32: US$'000
E33: Ordinary equity buybacks | G33: US$'000
E34: Dividends paid | G34: US$'000
E35: Net Financing cash flows | G35: US$'000 | J35: =SUM(J30:J34) -> 20 | K35: =SUM(K30:K34) -> 20 | L35: -15 | M35: -25 | N35: -10
D37: Net increase / (decrease) in cash held | G37: =Currency -> US$'000 | J37: =J35+J27+J22 -> -740.4262295 | K37: =K35+K27+K22 -> -1718.225734 | L37: 1860.202858 | M37: 2166.933444 | N37: 1101.109736

Sheet Lookup
A1: =IF(ISERROR(RIGHT(CELL("filename",A1),LEN(CELL("filename",A1))-FIND("]",CELL("filename",A1)))), "", RIGHT(CELL("filename",A1),LEN(CELL("filename",A1))-FIND("]",CELL("filename",A1)))) -> Lookup
A2: =Model_Name -> Go Skills Model 47 - Taxation End.xlsm
A3: Navigator
B4: Error Checks: | F4: =Overall_Error_Check -> 0
B6: =MAX($B$5:$B5)+1 -> 1 | C6: =A1 -> Lookup
C8: Year Lookups
D10: LU_Future_Years
D11: =OFFSET(Timing!$J$7,,ROWS($C$11:$C11)) -> 2021-06-30 | F11: LU_Future_Years
D12: =OFFSET(Timing!$J$7,,ROWS($C$11:$C12)) -> 2022-06-30
D13: =OFFSET(Timing!$J$7,,ROWS($C$11:$C13)) -> 2023-06-30
D14: =OFFSET(Timing!$J$7,,ROWS($C$11:$C14)) -> 2024-06-30
D15: Actuals Throughout

Sheet Timing
A1: =IF(ISERROR(RIGHT(CELL("filename",A1),LEN(CELL("filename",A1))-FIND("]",CELL("filename",A1)))), "", RIGHT(CELL("filename",A1),LEN(CELL("filename",A1))-FIND("]",CELL("filename",A1)))) -> Timing
A2: =Model_Name -> Go Skills Model 47 - Taxation End.xlsm
A3: Navigator
B4: Error Checks: | F4: =Overall_Error_Check -> 0
J5: =J7 -> 2020-06-30 | K5: =K7 -> 2021-06-30 | L5: 2022-06-30 | M5: 2023-06-30 | N5: 2024-06-30
C6: Start Date | J6: =IF(J$9=1,Model_Start_Date,I7+1) -> 2019-07-01 | K6: =IF(K$9=1,Model_Start_Date,J7+1) -> 2020-07-01 | L6: =IF(L$9=1,Model_Start_Date,K7+1) -> 2021-07-01 | M6: =IF(M$9=1,Model_Start_Date,L7+1) -> 2022-07-01 | N6: =IF(N$9=1,Model_Start_Date,M7+1) -> 2023-07-01
C7: End Date | J7: =EOMONTH(J$6,MOD(Periodicity+Reporting_Month_Factor-MONTH(J$6),Periodicity)) -> 2020-06-30 | K7: =EOMONTH(K$6,MOD(Periodicity+Reporting_Month_Factor-MONTH(K$6),Periodicity)) -> 2021-06-30 | L7: =EOMONTH(L$6,MOD(Periodicity+Reporting_Month_Factor-MONTH(L$6),Periodicity)) -> 2022-06-30 | M7: =EOMONTH(M$6,MOD(Periodicity+Reporting_Month_Factor-MONTH(M$6),Periodicity)) -> 2023-06-30 | N7: =EOMONTH(N$6,MOD(Periodicity+Reporting_Month_Factor-MONTH(N$6),Periodicity)) -> 2024-06-30
C8: Number of Days | J8: =J7-J6+1 -> 366 | K8: =K7-K6+1 -> 365 | L8: 365 | M8: 365 | N8: 366
C9: Counter | J9: =N(I9)+1 -> 1 | K9: =N(J9)+1 -> 2 | L9: 3 | M9: 4 | N9: 5
B11: =MAX($B$10:$B10)+1 -> 1 | C11: Timing Assumptions
C13: Data (do not change once modelling has commenced)
D15: Model Start Date | H15: 2019-07-01
D17: Number of Months in a Full Period | H17: 12
D19: Example Reporting Month | H19: 6 | I19: ="e.g. "&TEXT(DATE(YEAR(Model_Start_Date)+IF(Example_Reporting_Month<MONTH(Model_Start_Date),1,0),Example_Reporting_Month+1,1)-1,"dd-Mmm-yy") -> e.g. 30-Jun-20
D21: Reporting Month Factor | H21: =MOD(Example_Reporting_Month-1,Periodicity)+1 -> 6
D23: Months per Year | H23: =Months_in_Year -> 12

Sheet Error Checks
A1: =IF(ISERROR(RIGHT(CELL("filename",A1),LEN(CELL("filename",A1))-FIND("]",CELL("filename",A1)))), "", RIGHT(CELL("filename",A1),LEN(CELL("filename",A1))-FIND("]",CELL("filename",A1)))) -> Error Checks
A2: =Model_Name -> Go Skills Model 47 - Taxation End.xlsm
A3: Navigator
B4: Error Checks: | F4: =Overall_Error_Check -> 0
B6: =MAX($B$5:$B5)+1 -> 1 | C6: Error Checks
C8: Summary of Errors
D10: Assumptions
E12: Balance Sheet has no errors | I12: =HL_BS_Errors -> 0
E13: Balance Sheet balances | I13: =HL_BS_Balance -> 0
E14: Insolvency Check for Balance Sheet | I14: =HL_BS_Insolvency -> 0
E15: Opening Balance Sheet has no errors | I15: =HL_Op_BS_Errors -> 0
E16: Opening Balance Sheet balances | I16: =HL_Op_BS_Balance -> 0
E17: Insolvency Check for Opening Balance Sheet | I17: =HL_Op_BS_Insolvency -> 0
E25: =C8 -> Summary of Errors | I25: =MIN(1,SUM(I11:I23)) -> 0

Sheet Change Log
A1: =IF(ISERROR(RIGHT(CELL("filename",A1),LEN(CELL("filename",A1))-FIND("]",CELL("filename",A1)))), "", RIGHT(CELL("filename",A1),LEN(CELL("filename",A1))-FIND("]",CELL("filename",A1)))) -> Change Log
A2: =Model_Name -> Go Skills Model 47 - Taxation End.xlsm
A3: Navigator
B4: Error Checks: | F4: =Overall_Error_Check -> 0
B6: =MAX($B$5:$B5)+1 -> 1 | C6: =A1 -> Change Log
C8: Summary
F10: Date | G10: Model Version | H10: Details of change | I10: Worksheet Reference | J10: Row, column, cell reference | K10: Author
F11: 2019-07-01 | G11: Version LB1.01 | H11: I changed it | I11: Change Log | J11: J11 | K11: LB
F12: 2019-07-01 | G12: Version LB1.02 | H12: So did I. | I12: Error Checks | J12: I12 | K12: LB
F13: 2019-07-01 | G13: Version LB1.03 | H13: And me. | I13: Navigator | J13: A1 | K13: Dave
